[Event "FIDE Open Sachove Univerzity QCC"]
[Site "Ceske Budejovice"]
[Date "2020.07.06"]
[Round "6.2"]
[White "Titera, Libor"]
[Black "Petkov, Andon"]
[Result "1-0"]
[ECO "B32"]
[WhiteElo "1843"]
[BlackElo "1776"]
[Annotator "NA"]
[PlyCount "39"]
[EventDate "2020.07.01"]
[EventType "swiss"]
[EventCountry "CZE"]
[SourceTitle "playchess.com"]
[Source "ChessBase"]
[SourceQuality "1"]
[TimeControl "40/5400+30:1800+30"]

{[%evp 21,36,-6,-4,32767,32767,32767,66,-126,70,0,32767,-26,-1,-117,-31,-62,-11]} 1. e4 {[%emt 0:00:00]} c5 {[%emt 0:00:00]} 2. Nf3 {[%emt 0:01:38]} Nc6 {[%emt 0:00:00]} 3. d4 {[%emt 0:00:30]} cxd4 {[%emt 0:00:00]} 4. Nxd4 {[%emt 0:00:30]} e5 {[%emt 0:00:00]} 5. Nb5 {[%emt 0:00:30]} a6 {[%emt 0:00:00]} 6. Nd6+ {[%emt 0:04:19]} Bxd6 {[%emt 0:00:00]} 7. Qxd6 {[%emt 0:00:30]} Qf6 {[%emt 0:00:00]} 8. Qc7 {[%emt 0:00:30]} Nge7 {[%emt 0:00:00]} 9. Nc3 {[%emt 0:00:30]} O-O {[%emt 0:00:20]} 10. Be3 {[%emt 0:00:30]} d5 {[%emt 0:05:48]} 11. Bc5 {[%emt 0:12:08]} (11. Nxd5 $14 Nxd5 12. exd5) 11... Be6 {[%emt 0:17:57]} 12. exd5 {[%emt 0:10:37]} Bxd5 {[%emt 0:00:32]} 13. O-O-O {[%emt 0:04:45]} Rfd8 {[%emt 0:11:00]} 14. f3 $2 {[%emt 0:10:50] [#]} (14. Qxb7 $14 {keeps the upper hand.} Rdb8 15. Qc7) 14... Qe6 $2 {[%emt 0:19:37]} (14... Bxa2 $1 $17 {[%mdl 512]} 15. Rxd8+ (15. Nxa2 Qf4+) 15... Rxd8) 15. Bxe7 {[%emt 0:06:51]} ({Better is} 15. Qxb7 $16 Rdb8 16. Qc7) 15... Nxe7 {[%emt 0:10:11]} 16. Be2 {[%emt 0:07:24]} b5 {[%emt 0:04:15]} 17. Rd2 {[%emt 0:03:03] [#]} (17. Kb1 $11 {remains equal.}) 17... Rd7 {[%emt 0:06:45]} (17... Rdc8 $1 $17 {[%cal Rc8c7]} 18. Qa5 Nc6) 18. Qa5 {[%emt 0:05:06]} Rad8 $11 {[%emt 0:05:09]} 19. Rhd1 {[%emt 0:00:51]} Bb7 {[%emt 0:01:44]} 20. Qxd8+ {[%emt 0:00:45]} 1-0

[Event "FIDE Open Sachove Univerzity QCC"]
[Site "Ceske Budejovice"]
[Date "2020.07.06"]
[Round "6.2"]
[White "Gorej, Vojtech"]
[Black "Jilek, Pavel"]
[Result "1-0"]
[ECO "C44"]
[WhiteElo "1395"]
[BlackElo "1234"]
[Annotator "NA"]
[PlyCount "107"]
[EventDate "2020.07.01"]
[EventType "swiss"]
[EventCountry "CZE"]
[SourceTitle "playchess.com"]
[Source "ChessBase"]
[SourceQuality "1"]
[TimeControl "40/5400+30:1800+30"]

1. e4 {[%emt 0:05:50]} e5 {[%emt 0:00:08]} 2. Nf3 {[%emt 0:00:49]} Nc6 {[%emt 0:01:25]} 3. d4 {[%emt 0:00:51]} Bd6 {[%emt 0:01:38]} 4. Bc4 {[%emt 0:03:10]} h6 {[%emt 0:02:34]} 5. O-O {[%emt 0:02:03]} Qe7 {[%emt 0:01:04]} 6. Nc3 {[%emt 0:03:09]} Nf6 {[%emt 0:01:18]} 7. d5 {[%emt 0:06:16]} Na5 {[%emt 0:00:31]} 8. Bb3 {[%emt 0:01:05]} c6 {[%emt 0:01:01]} 9. Re1 {[%emt 0:08:28]} Bb4 {[%emt 0:01:21]} 10. dxc6 {[%emt 0:01:53]} dxc6 {[%emt 0:04:01]} 11. Qd3 {[%emt 0:04:22]} Bd7 {[%emt 0:03:04]} 12. a3 {[%emt 0:02:57]} Bc5 {[%emt 0:00:26]} 13. Be3 {[%emt 0:01:44]} Nxb3 {[%emt 0:02:00]} 14. cxb3 {[%emt 0:00:45]} Bd6 {[%emt 0:03:36]} 15. Red1 {[%emt 0:01:45]} Bc7 {[%emt 0:02:02]} 16. Rac1 {[%emt 0:08:08]} Rd8 {[%emt 0:00:44]} 17. Qe2 {[%emt 0:02:48]} Ng4 {[%emt 0:03:46]} 18. b4 {[%emt 0:02:54]} a6 {[%emt 0:02:17]} 19. Bc5 {[%emt 0:02:20]} Qe6 {[%emt 0:01:30]} 20. h3 {[%emt 0:07:36]} b6 {[%emt 0:02:23]} 21. Be3 {[%emt 0:03:00]} Nf6 {[%emt 0:01:21]} 22. Rd2 {[%emt 0:01:47]} b5 {[%emt 0:00:54]} 23. Bc5 {[%emt 0:01:25]} Rb8 {[%emt 0:02:39]} 24. Rcd1 {[%emt 0:02:46]} Bb6 {[%emt 0:04:04]} 25. Bd6 {[%emt 0:01:53]} Rb7 {[%emt 0:00:15]} 26. Nxe5 {[%emt 0:00:40]} Bc7 {[%emt 0:08:01]} 27. Bxc7 {[%emt 0:01:01]} Rxc7 {[%emt 0:00:14]} 28. Nxd7 {[%emt 0:00:19]} Nxd7 {[%emt 0:01:33]} 29. Rd6 {[%emt 0:01:00]} Qe7 {[%emt 0:02:10]} 30. Qd2 {[%emt 0:03:48]} O-O {[%emt 0:01:42]} 31. Rxd7 {[%emt 0:01:39]} Rxd7 {[%emt 0:03:10]} 32. Qxd7 {[%emt 0:00:02]} Qe8 {[%emt 0:08:13]} 33. Qxe8 {[%emt 0:00:18]} Rxe8 {[%emt 0:00:17]} 34. Rd6 {[%emt 0:00:08]} Rc8 {[%emt 0:00:09]} 35. f4 {[%emt 0:00:34]} f6 {[%emt 0:00:08]} 36. Kf2 {[%emt 0:00:07]} c5 {[%emt 0:00:44]} 37. bxc5 {[%emt 0:00:24]} Rxc5 {[%emt 0:00:04]} 38. Rxa6 {[%emt 0:00:08]} b4 {[%emt 0:01:37]} 39. axb4 {[%emt 0:00:12]} Rc4 {[%emt 0:00:46]} 40. b5 {[%emt 0:00:07]} Rb4 {[%emt 0:00:18]} 41. b6 {[%emt 0:30:53]} Rxb2+ {[%emt 0:30:43]} 42. Kg3 {[%emt 0:00:26]} Rb3 43. Kh2 Rxc3 {[%emt 0:02:43]} 44. Ra8+ {[%emt 0:00:32]} Kf7 45. b7 Rb3 {[%emt 0:03:29]} 46. b8=Q {[%emt 0:00:38]} Rxb8 {[%emt 0:00:26]} 47. Rxb8 {[%emt 0:00:03]} Kg6 48. f5+ Kf7 {[%emt 0:01:53]} 49. Rb7+ {[%emt 0:01:16]} Kf8 {[%emt 0:00:20]} 50. Kg3 {[%emt 0:00:02]} Kg8 51. Kh4 Kh7 {[%emt 0:01:39]} 52. Kh5 {[%emt 0:00:32]} Kg8 {[%emt 0:00:45]} 53. Kg6 {[%emt 0:00:03]} Kh8 {[%emt 0:00:31]} 54. Rb8# 1-0

[Event "FIDE Open Sachove Univerzity QCC"]
[Site "Ceske Budejovice"]
[Date "2020.07.06"]
[Round "6.3"]
[White "Popov, Roman"]
[Black "Svetly, Jiri"]
[Result "0-1"]
[ECO "E94"]
[WhiteElo "2353"]
[BlackElo "1835"]
[Annotator "ChessBase"]
[PlyCount "112"]
[EventDate "2020.07.01"]
[EventType "swiss"]
[EventCountry "CZE"]
[SourceTitle "playchess.com"]
[Source "ChessBase"]
[SourceQuality "1"]
[TimeControl "40/5400+30:1800+30"]

1. d4 {[%emt 0:00:00]} Nf6 {[%emt 0:00:00]} 2. c4 {[%emt 0:00:00]} g6 {[%emt 0:00:00]} 3. Nc3 {[%emt 0:00:00]} Bg7 {[%emt 0:00:02]} 4. e4 {[%emt 0:00:17]} d6 {[%emt 0:00:18]} 5. Nf3 {[%emt 0:00:42]} O-O {[%emt 0:00:23]} 6. Be2 {[%emt 0:00:07]} Nbd7 {[%emt 0:02:04]} 7. O-O {[%emt 0:00:20]} e5 {[%emt 0:02:07]} 8. Be3 {[%emt 0:02:19]} Ng4 {[%emt 0:05:56]} 9. Bg5 {[%emt 0:00:39]} f6 {[%emt 0:01:13]} 10. Bd2 {[%emt 0:00:13]} f5 {[%emt 0:06:25]} 11. h3 {[%emt 0:10:31]} Ngf6 {[%emt 0:11:07]} 12. Qc2 {[%emt 0:10:03]} exd4 {[%emt 0:07:45]} 13. Nxd4 {[%emt 0:00:38]} Nc5 {[%emt 0:00:28]} 14. exf5 {[%emt 0:11:05]} Nfe4 {[%emt 0:08:43]} 15. Nxe4 {[%emt 0:06:38]} Bxd4 {[%emt 0:01:27]} 16. Nxc5 {[%emt 0:01:39]} dxc5 {[%emt 0:03:29]} 17. fxg6 {[%emt 0:04:14]} Bf5 {[%emt 0:05:08]} 18. gxh7+ {[%emt 0:01:35]} Bxh7 {[%emt 0:00:17]} 19. Qb3 {[%emt 0:01:03]} Qf6 {[%emt 0:21:44]} 20. Qg3+ {[%emt 0:01:10]} Kh8 {[%emt 0:01:28]} 21. Bc3 {[%emt 0:01:33]} Rg8 {[%emt 0:01:53]} 22. Bxd4 {[%emt 0:02:03]} cxd4 {[%emt 0:00:42]} 23. Qf3 {[%emt 0:02:32]} Qe5 {[%emt 0:01:28]} 24. Bd3 {[%emt 0:07:03]} Raf8 {[%emt 0:08:47]} 25. Qe2 {[%emt 0:01:08]} Qxe2 {[%emt 0:01:47]} 26. Bxe2 {[%emt 0:00:06]} d3 {[%emt 0:00:03]} 27. Bg4 {[%emt 0:00:40]} d2 {[%emt 0:01:09]} 28. Bd1 {[%emt 0:01:52]} Bd3 {[%emt 0:00:34]} 29. Bb3 {[%emt 0:02:38]} Bxf1 {[%emt 0:00:45]} 30. Kxf1 {[%emt 0:00:05]} Rd8 {[%emt 0:00:34]} 31. f3 {[%emt 0:01:08]} Rd4 {[%emt 0:00:54]} 32. Rd1 {[%emt 0:01:10]} Rgd8 {[%emt 0:01:23]} 33. Kf2 {[%emt 0:01:10]} c5 {[%emt 0:01:20]} 34. g3 {[%emt 0:03:27]} Kg7 {[%emt 0:00:16]} 35. Kg2 {[%emt 0:03:55]} a6 {[%emt 0:00:20]} 36. a4 {[%emt 0:03:12]} b6 {[%emt 0:00:31]} 37. Kf2 {[%emt 0:00:45]} Kf6 {[%emt 0:00:13]} 38. h4 {[%emt 0:02:25]} b5 {[%emt 0:02:33]} 39. Bc2 {[%emt 0:09:02]} Rxc4 {[%emt 0:00:20]} 40. Be4 {[%emt 0:00:40]} Rxa4 {[%emt 0:00:51]} 41. Ke2 {[%emt 0:30:43]} Rad4 {[%emt 0:30:40]} 42. Ke3 {[%emt 0:00:42]} a5 {[%emt 0:00:00]} 43. g4 {[%emt 0:00:00]} c4 {[%emt 0:00:00]} 44. g5+ {[%emt 0:00:00]} Kg7 {[%emt 0:00:00]} 45. h5 {[%emt 0:00:00]} b4 {[%emt 0:00:00]} 46. h6+ {[%emt 0:00:00]} Kh8 {[%emt 0:00:00]} 47. g6 {[%emt 0:00:00]} Rxe4+ {[%emt 0:00:00]} 48. fxe4 {[%emt 0:00:00]} c3 {[%emt 0:00:00]} 49. bxc3 {[%emt 0:00:00]} bxc3 {[%emt 0:00:00]} 50. Ke2 {[%emt 0:00:00]} a4 {[%emt 0:00:00]} 51. e5 {[%emt 0:00:00]} a3 {[%emt 0:00:00]} 52. e6 {[%emt 0:00:00]} c2 {[%emt 0:00:00]} 53. Rxd2 {[%emt 0:00:00]} Rxd2+ {[%emt 0:00:00]} 54. Kxd2 {[%emt 0:00:00]} a2 {[%emt 0:00:00]} 55. Kxc2 {[%emt 0:00:00]} a1=Q {[%emt 0:00:00]} 56. Kd3 {[%emt 0:00:00]} Qe5 {[%emt 0:00:00]} 0-1

[Event "FIDE Open Sachove Univerzity QCC"]
[Site "Ceske Budejovice"]
[Date "2020.07.06"]
[Round "6.4"]
[White "Straka, Zdenek"]
[Black "Kotleska, Roman"]
[Result "0-1"]
[ECO "B13"]
[WhiteElo "1812"]
[BlackElo "1521"]
[Annotator "NA"]
[PlyCount "160"]
[EventDate "2020.07.01"]
[EventType "swiss"]
[EventCountry "CZE"]
[SourceTitle "playchess.com"]
[Source "ChessBase"]
[SourceQuality "1"]
[TimeControl "40/5400+30:1800+30"]

1. d4 {[%emt 0:00:00]} d5 {[%emt 0:00:00]} 2. Bf4 {[%emt 0:00:00]} c5 {[%emt 0:00:24]} 3. e3 {[%emt 0:00:00]} cxd4 {[%emt 0:00:23]} 4. exd4 {[%emt 0:00:00]} Nc6 {[%emt 0:00:18]} 5. c3 {[%emt 0:00:00]} Bf5 {[%emt 0:00:20]} 6. Bd3 {[%emt 0:00:00] B13: Caro-Kann: Exchange Variation and Panov-Botvinnik Attack.} Bxd3 {[%emt 0:00:50]} 7. Qxd3 {[%emt 0:00:00]} e6 {[%emt 0:00:49]} 8. Nf3 {[%emt 0:01:49]} Nf6 {[%emt 0:02:08]} 9. Nbd2 {[%emt 0:00:22]} Be7 {[%emt 0:02:45]} 10. O-O {[%emt 0:01:26]} O-O {[%emt 0:00:46]} 11. Ne5 {[%emt 0:07:09]} Nxe5 {[%emt 0:01:21]} 12. Bxe5 {[%emt 0:00:48]} Nd7 {[%emt 0:02:03] [#]} 13. Nf3 $146 {[%emt 0:01:31]} ({Predecessor:} 13. Rae1 b5 14. Re3 b4 15. Rh3 g6 16. Qe3 Bg5 17. f4 Be7 18. f5 Bg5 19. Bf4 Bxf4 20. Qxf4 exf5 {0-1 (57) Siebrecht,S (2280)-Brunner,L (2525) Lenk 1994}) 13... Nxe5 {[%emt 0:01:20]} 14. Nxe5 {[%emt 0:00:06]} Bd6 {[%emt 0:01:05]} 15. Rae1 {[%emt 0:02:54]} Qc7 {[%emt 0:05:39]} 16. Qh3 {[%emt 0:08:35]} Rae8 {[%emt 0:05:56]} 17. f4 {[%emt 0:00:37]} f5 {[%emt 0:01:26]} 18. Qd3 {[%emt 0:07:18]} a6 {[%emt 0:08:04]} 19. Re3 {[%emt 0:04:55]} Rf6 {[%emt 0:02:12]} 20. Rfe1 {[%emt 0:01:06]} Bxe5 {[%emt 0:00:51]} 21. Rxe5 {[%emt 0:00:18]} Qc6 {[%emt 0:04:00]} 22. R1e3 {[%emt 0:06:52]} Kf7 {[%emt 0:03:32]} 23. Rh3 {[%emt 0:02:29]} h6 {[%emt 0:03:35]} 24. Rg3 {[%emt 0:01:14]} g6 {[%emt 0:01:11]} 25. Rh3 {[%emt 0:03:11]} Kg7 {[%emt 0:02:04]} 26. Qg3 {[%emt 0:01:09]} Qa4 {[%emt 0:01:50]} 27. a3 {[%emt 0:02:26]} Qc2 {[%emt 0:04:55]} 28. Qf2 {[%emt 0:00:29]} Qxf2+ {[%emt 0:00:33]} 29. Kxf2 {[%emt 0:00:02]} Rf7 {[%emt 0:01:25]} 30. Rhe3 {[%emt 0:00:30]} Rfe7 {[%emt 0:00:27]} 31. h4 {[%emt 0:00:59]} Kf6 {[%emt 0:01:20]} 32. a4 {[%emt 0:02:46]} b5 {[%emt 0:01:39]} 33. axb5 {[%emt 0:00:54]} axb5 {[%emt 0:00:09]} 34. Ke2 {[%emt 0:00:29]} Ra8 {[%emt 0:03:01]} 35. Kd2 {[%emt 0:00:40]} Ra6 {[%emt 0:01:21]} 36. Kc2 {[%emt 0:01:08]} h5 {[%emt 0:04:30]} 37. Re1 {[%emt 0:00:42]} Kf7 {[%emt 0:00:39]} 38. R5e3 {[%emt 0:01:45]} Kf6 {[%emt 0:00:46]} 39. Rb1 {[%emt 0:01:24]} Rea7 {[%emt 0:02:30]} 40. Ree1 {[%emt 0:00:45]} Ra2 {[%emt 0:01:26]} 41. Kb3 {[%emt 0:31:24]} R2a4 {[%emt 0:30:18]} 42. Re3 {[%emt 0:00:37]} R7a6 {[%emt 0:00:33]} 43. Kc2 {[%emt 0:01:10]} Ra2 {[%emt 0:00:17]} 44. Kd3 {[%emt 0:01:17]} Ke7 {[%emt 0:02:52]} 45. Kc2 {[%emt 0:01:41]} Kf7 {[%emt 0:00:25]} 46. Kd3 {[%emt 0:00:44]} Ke7 {[%emt 0:00:14]} 47. Re2 {[%emt 0:00:31]} Ra7 {[%emt 0:03:12]} 48. Rc2 {[%emt 0:00:12]} Kd6 {[%emt 0:00:38]} 49. Re1 {[%emt 0:01:49]} R7a6 {[%emt 0:00:31]} 50. Re3 {[%emt 0:01:27]} Ke7 {[%emt 0:00:23]} 51. Rce2 {[%emt 0:00:48]} Rb6 {[%emt 0:02:15]} 52. Kc2 {[%emt 0:01:10]} Rba6 {[%emt 0:00:19]} 53. Rg3 {[%emt 0:00:34]} Kf6 {[%emt 0:00:32]} 54. Rg5 {[%emt 0:00:12]} Ra7 {[%emt 0:00:41]} 55. Re3 {[%emt 0:00:20]} Ra1 {[%emt 0:01:50]} 56. Rgg3 {[%emt 0:03:11]} R1a2 {[%emt 0:02:19]} 57. Re1 {[%emt 0:00:38]} R7a6 {[%emt 0:00:29]} 58. Rge3 {[%emt 0:00:21]} Ke7 {[%emt 0:00:56]} 59. Kb3 {[%emt 0:00:34]} R2a4 {[%emt 0:00:09]} 60. Rb1 {[%emt 0:00:53]} Rc6 $11 {[%emt 0:00:39]} 61. Ree1 {[%emt 0:01:09]} Rca6 {[%emt 0:00:37]} 62. Kc2 {[%emt 0:01:06]} Ra2 {[%emt 0:00:06]} 63. Kd3 {[%emt 0:00:19]} Kd7 {[%emt 0:00:51]} 64. Rec1 {[%emt 0:00:12]} Kd6 {[%emt 0:00:39]} 65. Rc2 {[%emt 0:00:24]} Rc6 {[%emt 0:01:05]} 66. b3 {[%emt 0:06:27]} Rxc2 {[%emt 0:00:25]} 67. Kxc2 {[%emt 0:00:02]} b4 {[%emt 0:00:31]} 68. c4 {[%emt 0:01:36]} dxc4 {[%emt 0:00:19]} 69. bxc4 {[%emt 0:00:21]} Rxc4+ {[%emt 0:00:18]} 70. Kd3 {[%emt 0:01:21]} Kd5 {[%emt 0:00:13]} 71. Ke3 {[%emt 0:00:56]} Rxd4 {[%emt 0:00:18]} 72. g3 {[%emt 0:00:32]} e5 {[%emt 0:02:28]} 73. fxe5 {[%emt 0:00:19]} Kxe5 {[%emt 0:00:14]} 74. Ra1 {[%emt 0:02:29]} Kd5 {[%emt 0:01:38]} 75. Ra8 {[%emt 0:00:11]} Re4+ {[%emt 0:00:56]} 76. Kd3 {[%emt 0:00:19]} Rg4 {[%emt 0:00:22]} 77. Rd8+ {[%emt 0:04:14]} Kc5 {[%emt 0:00:31]} 78. Rc8+ {[%emt 0:00:18]} Kb5 {[%emt 0:00:20]} 79. Rb8+ {[%emt 0:00:24]} Ka4 {[%emt 0:00:21]} 80. Kc2 {[%emt 0:00:12]} Rxg3 {[%emt 0:00:13]} 0-1

[Event "FIDE Open Sachove Univerzity QCC"]
[Site "Ceske Budejovice"]
[Date "2020.07.06"]
[Round "6.4"]
[White "Stavova, Marketa"]
[Black "Krautschneider, Daniel Jan"]
[Result "1-0"]
[ECO "B30"]
[WhiteElo "1219"]
[BlackElo "1374"]
[Annotator "NA"]
[PlyCount "105"]
[EventDate "2020.07.01"]
[EventType "swiss"]
[EventCountry "CZE"]
[SourceTitle "playchess.com"]
[Source "ChessBase"]
[SourceQuality "1"]
[TimeControl "40/5400+30:1800+30"]

1. e4 {[%emt 0:00:00]} c5 {[%emt 0:00:00]} 2. Nf3 {[%emt 0:01:05]} Nc6 {[%emt 0:00:07]} 3. Nc3 {[%emt 0:01:00]} g6 {[%emt 0:00:04]} 4. g3 {[%emt 0:00:18]} Bg7 {[%emt 0:00:14]} 5. Bg2 {[%emt 0:00:33]} d6 {[%emt 0:00:58]} 6. O-O {[%emt 0:00:58]} a6 {[%emt 0:02:00]} 7. d3 {[%emt 0:00:57]} Nf6 {[%emt 0:00:54]} 8. Bd2 {[%emt 0:02:18]} O-O {[%emt 0:00:19]} 9. Re1 {[%emt 0:00:46]} Qc7 {[%emt 0:01:23]} 10. Qc1 {[%emt 0:02:56]} Bd7 {[%emt 0:02:28]} 11. Nd5 {[%emt 0:03:33]} Nxd5 {[%emt 0:02:34]} 12. exd5 {[%emt 0:00:11]} Ne5 {[%emt 0:02:52]} 13. Nxe5 {[%emt 0:01:00]} Bxe5 {[%emt 0:00:07]} 14. Bh6 {[%emt 0:01:25]} Rfc8 {[%emt 0:00:34]} 15. Bf4 {[%emt 0:02:51]} Bf6 {[%emt 0:00:53]} 16. Rb1 {[%emt 0:01:11]} Rab8 {[%emt 0:04:00]} 17. c4 {[%emt 0:01:43]} Bf5 {[%emt 0:06:24]} 18. Be4 {[%emt 0:01:11]} Bxe4 {[%emt 0:01:48]} 19. dxe4 {[%emt 0:02:00]} b5 {[%emt 0:01:50]} 20. b3 {[%emt 0:02:06]} Qa5 {[%emt 0:04:03]} 21. cxb5 {[%emt 0:03:17]} Qxa2 {[%emt 0:04:40]} 22. bxa6 {[%emt 0:01:06]} Rxb3 {[%emt 0:04:07]} 23. Rxb3 {[%emt 0:01:36]} Qxb3 {[%emt 0:00:08]} 24. Re3 {[%emt 0:00:42]} Qb6 {[%emt 0:00:24]} 25. Qa3 {[%emt 0:00:41]} Ra8 {[%emt 0:01:17]} 26. Rb3 {[%emt 0:01:41]} Qxa6 {[%emt 0:02:44]} 27. Qxa6 {[%emt 0:00:29]} Rxa6 {[%emt 0:00:07]} 28. Bh6 {[%emt 0:00:35]} Ra8 {[%emt 0:00:09]} 29. Rb7 {[%emt 0:00:23]} Rc8 {[%emt 0:01:06]} 30. Kf1 {[%emt 0:00:43]} c4 {[%emt 0:00:09]} 31. Ke1 {[%emt 0:01:09]} c3 {[%emt 0:01:20]} 32. Kd1 {[%emt 0:00:27]} c2+ {[%emt 0:01:54]} 33. Kc1 {[%emt 0:00:10]} g5 {[%emt 0:00:56]} 34. f3 {[%emt 0:01:25]} e6 {[%emt 0:03:30]} 35. dxe6 {[%emt 0:01:23]} fxe6 {[%emt 0:01:38]} 36. f4 {[%emt 0:03:51]} d5 {[%emt 0:01:03]} 37. e5 {[%emt 0:01:28]} Bh8 {[%emt 0:00:10]} 38. Bxg5 {[%emt 0:00:24]} d4 {[%emt 0:01:03]} 39. Be7 {[%emt 0:01:27]} d3 {[%emt 0:00:58]} 40. Ba3 {[%emt 0:01:05]} Rd8 {[%emt 0:01:13]} 41. Kd2 {[%emt 0:31:03]} Ra8 {[%emt 0:34:42]} 42. Rb3 {[%emt 0:01:02]} Bg7 {[%emt 0:00:19]} 43. Rxd3 {[%emt 0:01:14]} Bf8 {[%emt 0:00:10]} 44. Bxf8 {[%emt 0:00:29]} Kxf8 {[%emt 0:00:14]} 45. Rc3 {[%emt 0:00:34]} Ra1 {[%emt 0:01:53]} 46. Rxc2 {[%emt 0:00:24]} Rh1 {[%emt 0:00:49]} 47. Ke3 {[%emt 0:00:09]} Rd1 {[%emt 0:00:38]} 48. Kf3 {[%emt 0:00:58]} h5 {[%emt 0:00:07]} 49. Rc8+ {[%emt 0:00:37]} Kg7 {[%emt 0:00:19]} 50. Rc7+ {[%emt 0:00:47]} Kg6 {[%emt 0:00:27]} 51. Re7 {[%emt 0:00:35]} Kf5 {[%emt 0:00:14]} 52. Rf7+ {[%emt 0:00:19]} Kg6 {[%emt 0:00:22]} 53. Rf6+ {[%emt 0:00:10]} 1-0

[Event "FIDE Open Sachove Univerzity QCC"]
[Site "Ceske Budejovice"]
[Date "2020.07.06"]
[Round "6.5"]
[White "Tajovsky, Simon"]
[Black "Chval, Petr"]
[Result "1/2-1/2"]
[ECO "A85"]
[WhiteElo "1594"]
[BlackElo "1926"]
[Annotator "ChessBase"]
[PlyCount "90"]
[EventDate "2020.07.01"]
[EventType "swiss"]
[EventCountry "CZE"]
[SourceTitle "playchess.com"]
[Source "ChessBase"]
[SourceQuality "1"]
[TimeControl "40/5400+30:1800+30"]

1. d4 {[%emt 0:00:00]} f5 {[%emt 0:00:00]} 2. c4 {[%emt 0:00:00]} Nf6 {[%emt 0:00:00]} 3. Nc3 {[%emt 0:00:00]} d6 {[%emt 0:00:06]} 4. Nf3 {[%emt 0:00:35]} g6 {[%emt 0:00:07]} 5. Bf4 {[%emt 0:00:45]} Bg7 {[%emt 0:00:08]} 6. e3 {[%emt 0:00:08]} O-O {[%emt 0:00:20]} 7. Bd3 {[%emt 0:00:56]} c6 {[%emt 0:00:36]} 8. Rc1 {[%emt 0:01:51]} Qe8 {[%emt 0:00:29]} 9. Qb3 {[%emt 0:06:35]} Kh8 {[%emt 0:01:14]} 10. O-O {[%emt 0:01:24]} Nbd7 {[%emt 0:00:42]} 11. d5 {[%emt 0:05:03]} Nh5 {[%emt 0:05:03]} 12. Ne2 {[%emt 0:06:55]} Nc5 {[%emt 0:01:26]} 13. Qc2 {[%emt 0:01:55]} Nxd3 {[%emt 0:00:05]} 14. Qxd3 {[%emt 0:00:06]} Bxb2 {[%emt 0:00:05]} 15. Rb1 {[%emt 0:01:19]} Bg7 {[%emt 0:00:11]} 16. Ng5 {[%emt 0:06:13]} h6 {[%emt 0:04:43]} 17. Nf3 {[%emt 0:06:06]} g5 {[%emt 0:03:57]} 18. Bg3 {[%emt 0:02:19]} f4 {[%emt 0:00:15]} 19. exf4 {[%emt 0:00:37]} gxf4 {[%emt 0:00:13]} 20. Bh4 {[%emt 0:01:44]} Bf5 {[%emt 0:00:05]} 21. Qd2 {[%emt 0:00:59]} Qg6 {[%emt 0:15:19]} 22. Rb3 {[%emt 0:06:34]} Bh3 {[%emt 0:01:26]} 23. Ne1 {[%emt 0:03:28]} f3 {[%emt 0:01:29]} 24. Ng3 {[%emt 0:01:39]} fxg2 {[%emt 0:00:48]} 25. Nxg2 {[%emt 0:00:19]} cxd5 {[%emt 0:04:39]} 26. cxd5 {[%emt 0:04:50]} b6 {[%emt 0:01:06]} 27. Bxe7 {[%emt 0:02:43]} Rf7 {[%emt 0:00:16]} 28. Bxd6 {[%emt 0:03:33]} Bxg2 {[%emt 0:01:06]} 29. Kxg2 {[%emt 0:00:12]} Qxd6 {[%emt 0:00:10]} 30. Nxh5 {[%emt 0:00:15]} Qg6+ {[%emt 0:00:56]} 31. Ng3 {[%emt 0:00:08]} h5 {[%emt 0:00:25]} 32. h4 {[%emt 0:03:43]} Rd8 {[%emt 0:01:05]} 33. Rd3 {[%emt 0:01:56]} Bf6 {[%emt 0:02:21]} 34. Rh1 {[%emt 0:07:11]} Kh7 {[%emt 0:00:28]} 35. Rf3 {[%emt 0:02:53]} Be7 {[%emt 0:01:13]} 36. Rxf7+ {[%emt 0:03:36]} Qxf7 {[%emt 0:00:01]} 37. Qd3+ {[%emt 0:01:20]} Kg8 {[%emt 0:01:13]} 38. Rd1 {[%emt 0:04:01]} Bxh4 {[%emt 0:04:35]} 39. d6 {[%emt 0:03:16]} Rd7 {[%emt 0:01:40]} 40. Qb5 {[%emt 0:03:24]} Bxg3 {[%emt 0:02:39]} 41. Qg5+ {[%emt 0:30:59]} Qg7 {[%emt 0:31:15]} 42. Qxg3 {[%emt 0:00:49]} b5 {[%emt 0:01:13]} 43. f4 {[%emt 0:01:37]} b4 {[%emt 0:01:20]} 44. Rd5 {[%emt 0:02:41]} Kf7 {[%emt 0:00:31]} 45. Qxg7+ {[%emt 0:00:28]} Kxg7 {[%emt 0:00:31]} 1/2-1/2

[Event "FIDE Open Sachove Univerzity QCC"]
[Site "Ceske Budejovice"]
[Date "2020.07.06"]
[Round "6.6"]
[White "Hlavsa, Filip"]
[Black "Dusanek, Michal"]
[Result "1-0"]
[ECO "B23"]
[WhiteElo "1886"]
[BlackElo "1500"]
[Annotator "NA"]
[PlyCount "51"]
[EventDate "2020.07.01"]
[EventType "swiss"]
[EventCountry "CZE"]
[SourceTitle "playchess.com"]
[Source "ChessBase"]
[SourceQuality "1"]
[TimeControl "40/5400+30:1800+30"]

{[%evp 17,51,44,53,47,32767,32767,93,109,107,75,97,93,32767,82,88,57,72,58,32767,32767,32767,131,135,32767,32767,32767,32767,128,144,32767,32767,32767,32767,32767,32767,271]} 1. e4 {[%emt 0:00:00]} c5 {[%emt 0:00:00]} 2. Nc3 {[%emt 0:00:00]} Nc6 {[%emt 0:00:24]} 3. Bb5 {[%emt 0:00:34]} g6 {[%emt 0:01:59]} 4. Bxc6 {[%emt 0:05:12]} dxc6 {[%emt 0:05:21]} 5. f4 {[%emt 0:03:20]} Bg7 {[%emt 0:01:30]} 6. Nf3 {[%emt 0:00:16] B23: Closed Sicilian: Lines without g3.} Nf6 {[%emt 0:03:30]} 7. d3 {[%emt 0:04:46]} Qc7 {[%emt 0:05:47]} 8. h3 {[%emt 0:04:40] [#]} Be6 $146 {[%emt 0:01:45]} ({Predecessor:} 8... Nh5 9. Ne2 Bd7 10. a4 Qb6 11. a5 Qc7 12. O-O O-O-O 13. Be3 Bxb2 14. Ra2 Bg7 {1-0 (33) Slezinski,N (2074)-Pilch,A (1838) Krakow 2018}) 9. O-O {[%emt 0:03:15]} O-O {[%emt 0:03:57]} 10. Qe1 {[%emt 0:04:20]} Rfd8 {[%emt 0:01:39]} 11. Qh4 {[%emt 0:07:24]} h6 {[%emt 0:07:52]} 12. f5 {[%emt 0:10:48]} g5 {[%emt 0:03:17] [#]} 13. Qf2 {[%emt 0:16:33]} (13. Bxg5 $1 $18 {has better winning chances.} hxg5 14. Nxg5) 13... Bc8 {[%emt 0:13:13]} 14. Qxc5 {[%emt 0:02:57]} b6 {[%emt 0:05:45]} 15. Qc4 {[%emt 0:06:12]} Bb7 {[%emt 0:02:39]} 16. Bd2 {[%emt 0:12:56]} c5 {[%emt 0:02:46]} 17. a4 {[%emt 0:01:53]} a6 {[%emt 0:00:37]} 18. Rae1 {[%emt 0:01:14]} Rac8 {[%emt 0:00:57]} 19. Nd1 {[%emt 0:02:10]} Nd7 {[%emt 0:01:28]} 20. Bc3 {[%emt 0:01:02]} Ne5 {[%emt 0:01:07]} 21. Nxe5 {[%emt 0:01:07]} Bxe5 {[%emt 0:01:12]} 22. Bxe5 {[%emt 0:01:30]} Qxe5 {[%emt 0:00:07]} 23. Kh1 {[%emt 0:03:12]} Rc7 {[%emt 0:01:58]} 24. Qb3 {[%emt 0:03:35]} Rd6 {[%emt 0:00:52]} 25. Ne3 {[%emt 0:00:03]} Qf6 {[%emt 0:01:40]} 26. Nc4 $18 {[%emt 0:01:07]} 1-0